[Event "Live Chess"]
[Site "Chess.com"]
[Date "2024.06.02"]
[Round "-"]
[White "friarnator"]
[Black "vincents82"]
[Result "1-0"]
[WhiteElo "2168"]
[BlackElo "2005"]
[TimeControl "300"]
[EndTime "1:44:54 PDT"]
[Termination "friarnator won by resignation"]

1. d4 {[%clk 0:04:53.1]} 1... d5 {[%clk 0:04:54.7]} 2. Nc3 {[%clk 0:04:36.1]}
2... Nf6 {[%clk 0:04:51.6]} 3. Bf4 {[%clk 0:04:28.4]} 3... g6 {[%clk 0:04:50.5]}
4. Qd2 {[%clk 0:04:23.9]} 4... Bg7 {[%clk 0:04:48.1]} 5. Bh6 {[%clk 0:04:21.8]}
5... O-O {[%clk 0:04:43.8]} 6. h4 {[%clk 0:04:18.1]} 6... Ne4 {[%clk 0:04:42.2]}
7. Nxe4 {[%clk 0:04:15]} 7... dxe4 {[%clk 0:04:41.6]} 8. c3 {[%clk 0:04:13.4]}
8... Nc6 {[%clk 0:04:34.5]} 9. h5 {[%clk 0:04:12.4]} 9... e5 {[%clk 0:04:33.7]}
10. hxg6 {[%clk 0:04:06.3]} 10... exd4 {[%clk 0:04:25.6]} 11. Bxg7 {[%clk
0:04:03.2]} 11... Kxg7 {[%clk 0:04:20.4]} 12. Qh6+ {[%clk 0:03:56.4]} 12... Kf6
{[%clk 0:04:18.2]} 13. g7+ {[%clk 0:03:46.6]} 1-0

[Event "Live Chess"]
[Site "Chess.com"]
[Date "2024.06.02"]
[Round "-"]
[White "juniortay"]
[Black "Keithdfg"]
[Result "1-0"]
[WhiteElo "2378"]
[BlackElo "1758"]
[TimeControl "300"]
[EndTime "1:45:03 PDT"]
[Termination "juniortay won on time"]

1. e4 {[%clk 0:04:57.9]} 1... d6 {[%clk 0:04:59.9]} 2. Nc3 {[%clk 0:04:56.5]}
2... Nf6 {[%clk 0:04:59.8]} 3. f4 {[%clk 0:04:56.1]} 3... Nbd7 {[%clk
0:04:57.6]} 4. Nf3 {[%clk 0:04:56]} 4... e5 {[%clk 0:04:55.6]} 5. Bc4 {[%clk
0:04:55.2]} 5... h6 {[%clk 0:04:54.2]} 6. d3 {[%clk 0:04:54.6]} 6... Be7 {[%clk
0:04:52.2]} 7. O-O {[%clk 0:04:53.8]} 7... c6 {[%clk 0:04:50.9]} 8. a4 {[%clk
0:04:52.3]} 8... Qc7 {[%clk 0:04:47.3]} 9. Kh1 {[%clk 0:04:51]} 9... exf4 {[%clk
0:04:28.5]} 10. Bxf4 {[%clk 0:04:49.3]} 10... Ne5 {[%clk 0:04:26.9]} 11. Nxe5
{[%clk 0:04:43]} 11... dxe5 {[%clk 0:04:25.4]} 12. Be3 {[%clk 0:04:42.4]} 12...
Bg4 {[%clk 0:04:09.8]} 13. Qe1 {[%clk 0:04:38.9]} 13... Bh5 {[%clk 0:04:07.9]}
14. Qg3 {[%clk 0:04:35.5]} 14... Bg6 {[%clk 0:04:06]} 15. Rf2 {[%clk 0:04:34.2]}
15... h5 {[%clk 0:02:59.7]} 16. h3 {[%clk 0:04:30.7]} 16... h4 {[%clk
0:02:57.5]} 17. Qh2 {[%clk 0:04:27.5]} 17... Nh5 {[%clk 0:02:55.6]} 18. Ne2
{[%clk 0:04:25.2]} 18... Bf6 {[%clk 0:02:47.9]} 19. a5 {[%clk 0:04:08.7]} 19...
O-O {[%clk 0:02:41.7]} 20. b4 {[%clk 0:04:04.9]} 20... b5 {[%clk 0:02:38.1]} 21.
axb6 {[%clk 0:04:02.3]} 21... axb6 {[%clk 0:02:30.6]} 22. Raf1 {[%clk
0:04:01.6]} 22... Ra4 {[%clk 0:01:50.6]} 23. c3 {[%clk 0:03:45.1]} 23... Ra3
{[%clk 0:01:43.6]} 24. g4 {[%clk 0:03:39.8]} 24... hxg3 {[%clk 0:01:40.5]} 25.
Nxg3 {[%clk 0:03:39]} 25... Nf4 {[%clk 0:01:29.2]} 26. Rg1 {[%clk 0:02:26.2]}
26... b5 {[%clk 0:01:20]} 27. Bc1 {[%clk 0:02:16.3]} 27... Rxc3 {[%clk
0:01:15.3]} 28. Ba2 {[%clk 0:02:13.5]} 28... Nxd3 {[%clk 0:00:49]} 29. Rxf6
{[%clk 0:02:06]} 29... gxf6 {[%clk 0:00:05.6]} 30. Nf5 {[%clk 0:02:03.9]} 30...
Rxc1 {[%clk 0:00:01.4]} 31. Qg3 {[%clk 0:01:51.4]} 1-0

[Event "Live Chess"]
[Site "Chess.com"]
[Date "2024.06.02"]
[Round "-"]
[White "Queensandpawns"]
[Black "JohanKjeldahl"]
[Result "1-0"]
[WhiteElo "2273"]
[BlackElo "1816"]
[TimeControl "300"]
[EndTime "1:45:05 PDT"]
[Termination "Queensandpawns won by resignation"]

1. e4 {[%clk 0:04:59]} 1... c5 {[%clk 0:04:57.7]} 2. d4 {[%clk 0:04:58.1]} 2...
cxd4 {[%clk 0:04:56]} 3. c3 {[%clk 0:04:58]} 3... dxc3 {[%clk 0:04:53.2]} 4. Bc4
{[%clk 0:04:57.6]} 4... e6 {[%clk 0:04:49.8]} 5. Nxc3 {[%clk 0:04:53.5]} 5...
Nc6 {[%clk 0:04:48.2]} 6. Nf3 {[%clk 0:04:52.9]} 6... a6 {[%clk 0:04:46.1]} 7.
O-O {[%clk 0:04:52.6]} 7... b5 {[%clk 0:04:45]} 8. Bb3 {[%clk 0:04:51.3]} 8...
Bb7 {[%clk 0:04:43.5]} 9. Re1 {[%clk 0:04:50.1]} 9... Be7 {[%clk 0:04:42.2]} 10.
Nd5 {[%clk 0:04:49.3]} 10... Nf6 {[%clk 0:04:39.4]} 11. Nxe7 {[%clk 0:04:47.7]}
11... Qxe7 {[%clk 0:04:37.3]} 12. Bf4 {[%clk 0:04:47.3]} 12... O-O {[%clk
0:04:23.5]} 13. Bd6 {[%clk 0:04:43.5]} 13... Qd8 {[%clk 0:04:22.3]} 14. Bxf8
{[%clk 0:04:35.5]} 14... Kxf8 {[%clk 0:04:21.2]} 15. Qd2 {[%clk 0:04:33.8]}
15... Qe7 {[%clk 0:04:15.5]} 16. e5 {[%clk 0:04:12.1]} 16... Ng4 {[%clk
0:04:10.3]} 17. h3 {[%clk 0:04:07.7]} 17... Nh6 {[%clk 0:04:08.2]} 18. Rad1
{[%clk 0:04:07.2]} 18... Rd8 {[%clk 0:04:05.4]} 19. Ng5 {[%clk 0:03:59.6]} 19...
Kg8 {[%clk 0:04:00.4]} 20. Bc2 {[%clk 0:03:58.8]} 20... Nf5 {[%clk 0:03:52.9]}
21. g4 {[%clk 0:03:55.1]} 21... Nfd4 {[%clk 0:03:48.2]} 22. Bxh7+ {[%clk
0:03:51.5]} 22... Kh8 {[%clk 0:03:46.3]} 23. Be4 {[%clk 0:03:48.7]} 23... Qxg5
{[%clk 0:03:42.8]} 24. Qxg5 {[%clk 0:03:47.2]} 1-0

[Event "Live Chess"]
[Site "Chess.com"]
[Date "2024.06.02"]
[Round "-"]
[White "AlanBstard10"]
[Black "jimwad"]
[Result "1-0"]
[WhiteElo "1213"]
[BlackElo "1304"]
[TimeControl "300"]
[EndTime "1:45:13 PDT"]
[Termination "AlanBstard10 won on time"]

1. b4 {[%clk 0:04:57.5]} 1... d5 {[%clk 0:04:55.9]} 2. Bb2 {[%clk 0:04:54.9]}
2... e6 {[%clk 0:04:52.5]} 3. e3 {[%clk 0:04:51.4]} 3... Bxb4 {[%clk 0:04:50.9]}
4. Bxg7 {[%clk 0:04:49.6]} 4... Qg5 {[%clk 0:04:43.8]} 5. Bxh8 {[%clk
0:04:44.6]} 5... f6 {[%clk 0:04:40.6]} 6. Nc3 {[%clk 0:04:34.3]} 6... Bxc3
{[%clk 0:04:38.6]} 7. dxc3 {[%clk 0:04:33.2]} 7... Nc6 {[%clk 0:04:38.2]} 8. Nf3
{[%clk 0:04:27.1]} 8... Qg6 {[%clk 0:04:36.1]} 9. Nd4 {[%clk 0:04:23.4]} 9...
Bd7 {[%clk 0:04:30.7]} 10. Nxc6 {[%clk 0:04:22.1]} 10... Bxc6 {[%clk 0:04:29.4]}
11. Qd3 {[%clk 0:04:15.3]} 11... Qg5 {[%clk 0:04:22.7]} 12. g3 {[%clk
0:04:03.6]} 12... O-O-O {[%clk 0:04:20.5]} 13. Rg1 {[%clk 0:04:02.8]} 13... Ne7
{[%clk 0:04:17.1]} 14. Bg2 {[%clk 0:04:01.4]} 14... Rxh8 {[%clk 0:04:15.4]} 15.
Rb1 {[%clk 0:03:45.9]} 15... Rd8 {[%clk 0:03:45.5]} 16. h4 {[%clk 0:03:44]}
16... Qe5 {[%clk 0:03:36.1]} 17. f4 {[%clk 0:03:25.4]} 17... Qd6 {[%clk
0:03:32.1]} 18. Qxh7 {[%clk 0:03:22.3]} 18... Nf5 {[%clk 0:03:24.8]} 19. Qh5
{[%clk 0:02:58]} 19... Nxe3 {[%clk 0:03:16]} 20. Qe2 {[%clk 0:02:49.1]} 20...
Nf5 {[%clk 0:03:05.8]} 21. Kf2 {[%clk 0:02:41.3]} 21... Qc5+ {[%clk 0:03:03]}
22. Ke1 {[%clk 0:02:35.2]} 22... Qxc3+ {[%clk 0:03:00.1]} 23. Qd2 {[%clk
0:02:31]} 23... Qxg3+ {[%clk 0:02:57.5]} 24. Qf2 {[%clk 0:02:26.3]} 24... Qxf2+
{[%clk 0:02:42.9]} 25. Kxf2 {[%clk 0:02:25]} 25... Nxh4 {[%clk 0:02:41.9]} 26.
Kg3 {[%clk 0:02:23.9]} 26... Nf5+ {[%clk 0:02:40.8]} 27. Kg4 {[%clk 0:02:21.1]}
27... Ne3+ {[%clk 0:02:37]} 28. Kf3 {[%clk 0:02:18.7]} 28... Nxc2 {[%clk
0:02:35.6]} 29. Rgc1 {[%clk 0:02:15.7]} 29... Nd4+ {[%clk 0:02:33.4]} 30. Kf2
{[%clk 0:02:12.9]} 30... Nf5 {[%clk 0:02:25]} 31. Bh3 {[%clk 0:02:08.6]} 31...
Ng7 {[%clk 0:01:58.6]} 32. Re1 {[%clk 0:02:02.6]} 32... f5 {[%clk 0:01:53]} 33.
Rg1 {[%clk 0:01:59.8]} 33... Ne8 {[%clk 0:01:42.5]} 34. Rg6 {[%clk 0:01:53.4]}
34... Bd7 {[%clk 0:01:40.5]} 35. Rb3 {[%clk 0:01:45.1]} 35... Nd6 {[%clk
0:01:38.8]} 36. Ra3 {[%clk 0:01:43.9]} 36... a6 {[%clk 0:01:27.4]} 37. Bf1
{[%clk 0:01:38.6]} 37... Ne4+ {[%clk 0:01:21]} 38. Ke1 {[%clk 0:01:31.9]} 38...
Rh8 {[%clk 0:00:49.7]} 39. Rb3 {[%clk 0:01:27.1]} 39... Nc5 {[%clk 0:00:44.2]}
40. Rbg3 {[%clk 0:01:22.1]} 40... Ne4 {[%clk 0:00:22.3]} 41. Rg8+ {[%clk
0:01:20.2]} 41... Rxg8 {[%clk 0:00:21]} 42. Rxg8+ {[%clk 0:01:19.1]} 42... Be8
{[%clk 0:00:18.3]} 43. Rxe8+ {[%clk 0:01:18.2]} 43... Kd7 {[%clk 0:00:18.1]} 44.
Rb8 {[%clk 0:01:16.6]} 44... b6 {[%clk 0:00:16.3]} 45. Bxa6 {[%clk 0:01:12.4]}
45... Nc5 {[%clk 0:00:13.8]} 46. Bc8+ {[%clk 0:01:10.6]} 46... Kd6 {[%clk
0:00:12]} 47. Ra8 {[%clk 0:01:08.3]} 47... Nd3+ {[%clk 0:00:08.5]} 48. Kd2
{[%clk 0:01:05.9]} 48... Nxf4 {[%clk 0:00:07.3]} 49. Ra3 {[%clk 0:01:04.3]}
49... Ng6 {[%clk 0:00:02.7]} 50. Rg3 {[%clk 0:00:58.8]} 50... Ne5 {[%clk
0:00:02.6]} 51. Rg7 {[%clk 0:00:53.6]} 51... Nc4+ {[%clk 0:00:02.5]} 52. Kc3
{[%clk 0:00:52]} 1-0

[Event "Live Chess"]
[Site "Chess.com"]
[Date "2024.06.02"]
[Round "-"]
[White "TJ-W"]
[Black "ProfessorChess101"]
[Result "0-1"]
[WhiteElo "1571"]
[BlackElo "2727"]
[TimeControl "300"]
[EndTime "1:45:18 PDT"]
[Termination "ProfessorChess101 won by resignation"]

1. e4 {[%clk 0:04:55.9]} 1... c5 {[%clk 0:04:54.8]} 2. Nc3 {[%clk 0:04:53.2]}
2... a6 {[%clk 0:04:53.9]} 3. d4 {[%clk 0:04:51.3]} 3... cxd4 {[%clk 0:04:51.3]}
4. Qxd4 {[%clk 0:04:51.2]} 4... Nc6 {[%clk 0:04:51]} 5. Qe3 {[%clk 0:04:49.8]}
5... Nf6 {[%clk 0:04:49.7]} 6. Bd2 {[%clk 0:04:42.4]} 6... d5 {[%clk 0:04:46.1]}
7. exd5 {[%clk 0:04:31.9]} 7... Nxd5 {[%clk 0:04:46]} 8. Nxd5 {[%clk 0:04:29.6]}
8... Qxd5 {[%clk 0:04:45.9]} 9. O-O-O {[%clk 0:04:27.4]} 9... Qxa2 {[%clk
0:04:42.9]} 10. c4 {[%clk 0:03:51]} 10... Qa1+ {[%clk 0:04:26.1]} 11. Kc2 {[%clk
0:03:47.5]} 11... Qa4+ {[%clk 0:04:26]} 12. Kb1 {[%clk 0:03:37]} 12... Qxd1+
{[%clk 0:04:24.3]} 13. Ka2 {[%clk 0:03:33.3]} 13... Qxf1 {[%clk 0:04:15.3]} 0-1

[Event "Live Chess"]
[Site "Chess.com"]
[Date "2024.06.02"]
[Round "-"]
[White "matt1979"]
[Black "EdenHazard8"]
[Result "0-1"]
[WhiteElo "1408"]
[BlackElo "2201"]
[TimeControl "300"]
[EndTime "1:45:20 PDT"]
[Termination "EdenHazard8 won by checkmate"]

1. f4 {[%clk 0:04:58.6]} 1... d5 {[%clk 0:04:55.8]} 2. e3 {[%clk 0:04:57.3]}
2... c5 {[%clk 0:04:54.9]} 3. Nf3 {[%clk 0:04:56]} 3... Nc6 {[%clk 0:04:54.3]}
4. Bb5 {[%clk 0:04:54.5]} 4... Nf6 {[%clk 0:04:50.3]} 5. O-O {[%clk 0:04:50.6]}
5... Bd7 {[%clk 0:04:48.6]} 6. Bxc6 {[%clk 0:04:47.5]} 6... Bxc6 {[%clk
0:04:47]} 7. Ne5 {[%clk 0:04:46.7]} 7... e6 {[%clk 0:04:45.9]} 8. b3 {[%clk
0:04:45.6]} 8... Bd6 {[%clk 0:04:44.4]} 9. Bb2 {[%clk 0:04:44.4]} 9... O-O
{[%clk 0:04:43.3]} 10. Nxc6 {[%clk 0:04:42.2]} 10... bxc6 {[%clk 0:04:42.3]} 11.
Qf3 {[%clk 0:04:38.7]} 11... Re8 {[%clk 0:04:25.4]} 12. Qh3 {[%clk 0:04:34.2]}
12... Bf8 {[%clk 0:04:17.9]} 13. Rf3 {[%clk 0:04:25.6]} 13... d4 {[%clk
0:04:16.1]} 14. Rg3 {[%clk 0:04:09.1]} 14... Ne4 {[%clk 0:04:06.9]} 15. Rg4
{[%clk 0:03:51.6]} 15... f5 {[%clk 0:03:59.4]} 16. Rh4 {[%clk 0:03:46.7]} 16...
h6 {[%clk 0:03:54.2]} 17. d3 {[%clk 0:03:38.2]} 17... Nf6 {[%clk 0:03:38.1]} 18.
Nd2 {[%clk 0:03:27.5]} 18... dxe3 {[%clk 0:03:26.3]} 19. Qxe3 {[%clk 0:03:25]}
19... Ng4 {[%clk 0:03:22.3]} 20. Qg3 {[%clk 0:03:20.6]} 20... c4 {[%clk
0:03:14]} 21. h3 {[%clk 0:03:16]} 21... Bc5+ {[%clk 0:03:10.3]} 22. Kf1 {[%clk
0:03:01.6]} 22... Bf2 {[%clk 0:03:08]} 23. Qf3 {[%clk 0:02:52.1]} 23... Qxh4
{[%clk 0:02:57.4]} 24. hxg4 {[%clk 0:02:46.6]} 24... Bg3 {[%clk 0:02:54.1]} 25.
Nxc4 {[%clk 0:02:10.3]} 25... fxg4 {[%clk 0:02:44.7]} 26. Qxc6 {[%clk
0:02:02.6]} 26... Bxf4 {[%clk 0:02:41.2]} 27. Qd7 {[%clk 0:01:51.4]} 27... Re7
{[%clk 0:02:38.1]} 28. Qd4 {[%clk 0:01:46.9]} 28... Rf8 {[%clk 0:02:34.3]} 29.
Ke2 {[%clk 0:01:42.5]} 29... Bg3 {[%clk 0:02:14.7]} 30. Rf1 {[%clk 0:01:21.5]}
30... Rxf1 {[%clk 0:02:10.6]} 31. Kxf1 {[%clk 0:01:20.6]} 31... Qh1+ {[%clk
0:02:08.1]} 32. Ke2 {[%clk 0:01:17]} 32... Qxg2+ {[%clk 0:02:06.4]} 33. Kd1
{[%clk 0:01:13.5]} 33... Qf3+ {[%clk 0:02:05.3]} 34. Kd2 {[%clk 0:01:11.4]}
34... Bf4+ {[%clk 0:02:04.7]} 35. Kc3 {[%clk 0:01:06.9]} 35... Qe2 {[%clk
0:01:53.4]} 36. Qd8+ {[%clk 0:01:04.3]} 36... Kh7 {[%clk 0:01:50.7]} 37. Qxe7
{[%clk 0:01:03.1]} 37... Qe1+ {[%clk 0:01:34.1]} 38. Kd4 {[%clk 0:00:57.3]}
38... g3 {[%clk 0:01:25.2]} 39. Kc5 {[%clk 0:00:45.1]} 39... e5 {[%clk
0:01:09.4]} 40. Kd5 {[%clk 0:00:30.6]} 40... g2 {[%clk 0:01:05.1]} 41. Nxe5
{[%clk 0:00:29.4]} 41... g1=Q {[%clk 0:01:00.8]} 42. Bd4 {[%clk 0:00:19]} 42...
Qg2+ {[%clk 0:00:54.6]} 43. Kc4 {[%clk 0:00:17.2]} 43... Qxc2+ {[%clk
0:00:52.5]} 44. Kd5 {[%clk 0:00:14.2]} 44... Qa5+ {[%clk 0:00:51]} 45. Ke4
{[%clk 0:00:12]} 45... Bxe5 {[%clk 0:00:49.2]} 46. Bxe5 {[%clk 0:00:09.6]} 46...
Qe2+ {[%clk 0:00:48]} 47. Kf5 {[%clk 0:00:07.7]} 47... Qf3+ {[%clk 0:00:44.9]}
48. Ke6 {[%clk 0:00:05.1]} 48... Qb6+ {[%clk 0:00:43.7]} 49. Kd7 {[%clk
0:00:02.4]} 49... Qfc6# {[%clk 0:00:40.4]} 0-1

[Event "Live Chess"]
[Site "Chess.com"]
[Date "2024.06.02"]
[Round "-"]
[White "Zhevzh1k7"]
[Black "StoreySniper"]
[Result "0-1"]
[WhiteElo "1097"]
[BlackElo "2501"]
[TimeControl "300"]
[EndTime "1:45:34 PDT"]
[Termination "StoreySniper won by resignation"]

1. e4 {[%clk 0:04:56.7]} 1... g6 {[%clk 0:04:51.4]} 2. Nf3 {[%clk 0:04:54.3]}
2... Bg7 {[%clk 0:04:49.8]} 3. d4 {[%clk 0:04:52.1]} 3... c5 {[%clk 0:04:42.9]}
4. Bc4 {[%clk 0:04:46]} 4... cxd4 {[%clk 0:04:39.2]} 5. Nxd4 {[%clk 0:04:44.3]}
5... Qa5+ {[%clk 0:04:37.8]} 6. c3 {[%clk 0:04:41.1]} 6... Nf6 {[%clk
0:04:31.9]} 7. Bf4 {[%clk 0:04:29.8]} 7... e5 {[%clk 0:04:21.2]} 8. Nb3 {[%clk
0:04:13.2]} 8... Qc7 {[%clk 0:04:18]} 9. Bxf7+ {[%clk 0:04:01.5]} 9... Kxf7
{[%clk 0:04:15.2]} 10. Bg3 {[%clk 0:03:55.1]} 10... d6 {[%clk 0:04:12.3]} 11.
O-O {[%clk 0:03:51.7]} 11... Rf8 {[%clk 0:04:09.2]} 12. N1d2 {[%clk 0:03:47.2]}
12... Kg8 {[%clk 0:04:05.3]} 13. Nf3 {[%clk 0:03:44.6]} 13... Bg4 {[%clk
0:04:02.4]} 14. h3 {[%clk 0:03:42.4]} 14... Bxf3 {[%clk 0:04:01.5]} 15. Qxf3
{[%clk 0:03:40.5]} 15... Nbd7 {[%clk 0:03:59.1]} 16. Rad1 {[%clk 0:03:32.8]}
16... Nc5 {[%clk 0:03:55]} 17. Nxc5 {[%clk 0:03:22.3]} 17... Qxc5 {[%clk
0:03:51.7]} 18. Qd3 {[%clk 0:03:16.1]} 18... Rad8 {[%clk 0:03:46.6]} 19. Bh4
{[%clk 0:03:06]} 19... h6 {[%clk 0:03:42.6]} 20. Kh1 {[%clk 0:02:52.2]} 20... g5
{[%clk 0:03:39.3]} 21. Bg3 {[%clk 0:02:50]} 21... Nh5 {[%clk 0:03:38.5]} 22. Bh2
{[%clk 0:02:40.8]} 22... Rxf2 {[%clk 0:03:33]} 23. Rxf2 {[%clk 0:02:39]} 23...
Qxf2 {[%clk 0:03:31.4]} 24. Qd5+ {[%clk 0:02:36.4]} 24... Kh8 {[%clk 0:03:24.9]}
25. Qxb7 {[%clk 0:02:26.4]} 25... Nf4 {[%clk 0:03:23.2]} 26. Bxf4 {[%clk
0:02:20.9]} 26... exf4 {[%clk 0:03:21.5]} 27. Qc7 {[%clk 0:02:12.4]} 27... Rf8
{[%clk 0:03:17.2]} 28. Rxd6 {[%clk 0:02:04.7]} 28... f3 {[%clk 0:03:15.3]} 29.
Rxh6+ {[%clk 0:01:50.3]} 29... Bxh6 {[%clk 0:03:13.7]} 30. Qe5+ {[%clk
0:01:42.8]} 30... Bg7 {[%clk 0:03:12.8]} 31. Qxg5 {[%clk 0:01:38.6]} 31... Qf1+
{[%clk 0:03:10.8]} 32. Kh2 {[%clk 0:01:36.3]} 32... Qxg2+ {[%clk 0:03:06.6]} 33.
Qxg2 {[%clk 0:01:34.7]} 33... fxg2 {[%clk 0:03:06.5]} 34. Kxg2 {[%clk
0:01:34.5]} 34... Rf4 {[%clk 0:03:03.7]} 35. Kg3 {[%clk 0:01:31.1]} 35... Rxe4
{[%clk 0:03:02.7]} 36. Kf3 {[%clk 0:01:29.6]} 36... Re1 {[%clk 0:03:01.6]} 37.
Kg4 {[%clk 0:01:27.3]} 37... Rb1 {[%clk 0:03:00.9]} 0-1

[Event "Live Chess"]
[Site "Chess.com"]
[Date "2024.06.02"]
[Round "-"]
[White "Duke_of_Bebington"]
[Black "ameetghasi100"]
[Result "0-1"]
[WhiteElo "1664"]
[BlackElo "2792"]
[TimeControl "300"]
[EndTime "1:45:43 PDT"]
[Termination "ameetghasi100 won by resignation"]

1. e4 {[%clk 0:04:56.9]} 1... g6 {[%clk 0:04:59.9]} 2. d4 {[%clk 0:04:55]} 2...
d6 {[%clk 0:04:59.8]} 3. Bd3 {[%clk 0:04:51.2]} 3... Bg7 {[%clk 0:04:59.7]} 4.
Ne2 {[%clk 0:04:49.7]} 4... a6 {[%clk 0:04:59.6]} 5. Be3 {[%clk 0:04:48.8]} 5...
e6 {[%clk 0:04:59.5]} 6. Qd2 {[%clk 0:04:47.7]} 6... Ne7 {[%clk 0:04:59.4]} 7.
Nbc3 {[%clk 0:04:44.9]} 7... h6 {[%clk 0:04:59.3]} 8. f3 {[%clk 0:04:42.8]} 8...
Nd7 {[%clk 0:04:59.2]} 9. O-O-O {[%clk 0:04:41.5]} 9... b5 {[%clk 0:04:59.1]}
10. Kb1 {[%clk 0:04:39.9]} 10... Bb7 {[%clk 0:04:58.1]} 11. a3 {[%clk
0:04:38.8]} 11... Nb6 {[%clk 0:04:55.9]} 12. h4 {[%clk 0:04:34.5]} 12... Qd7
{[%clk 0:04:53.6]} 13. b4 {[%clk 0:04:19.2]} 13... d5 {[%clk 0:04:47.4]} 14. Qc1
{[%clk 0:04:03.3]} 14... Nc4 {[%clk 0:04:43.5]} 15. Bxc4 {[%clk 0:04:01]} 15...
bxc4 {[%clk 0:04:41.7]} 16. exd5 {[%clk 0:03:45.6]} 16... Nxd5 {[%clk
0:04:41.6]} 17. Ne4 {[%clk 0:03:41.3]} 17... a5 {[%clk 0:04:39.8]} 18. Nc5
{[%clk 0:03:39.7]} 18... Qb5 {[%clk 0:04:38.8]} 19. Nxb7 {[%clk 0:03:29]} 19...
Qxb7 {[%clk 0:04:38.7]} 20. Qb2 {[%clk 0:03:24.6]} 20... Nxe3 {[%clk 0:04:34.4]}
21. Nc3 {[%clk 0:03:15.6]} 21... axb4 {[%clk 0:04:32.7]} 22. axb4 {[%clk
0:03:14.3]} 22... Nd5 {[%clk 0:04:31.6]} 0-1

[Event "Live Chess"]
[Site "Chess.com"]
[Date "2024.06.02"]
[Round "-"]
[White "JanMur7"]
[Black "NottheBishopSacrifice"]
[Result "0-1"]
[WhiteElo "2273"]
[BlackElo "2325"]
[TimeControl "300"]
[EndTime "1:46:17 PDT"]
[Termination "NottheBishopSacrifice won by resignation"]

1. c4 {[%clk 0:04:59]} 1... e6 {[%clk 0:04:58.2]} 2. Nc3 {[%clk 0:04:58.3]} 2...
d5 {[%clk 0:04:57.3]} 3. d4 {[%clk 0:04:57.8]} 3... Nf6 {[%clk 0:04:55.5]} 4.
Bg5 {[%clk 0:04:57.2]} 4... dxc4 {[%clk 0:04:53.9]} 5. e3 {[%clk 0:04:54.6]}
5... c5 {[%clk 0:04:50.9]} 6. dxc5 {[%clk 0:04:50.2]} 6... Bxc5 {[%clk
0:04:46.1]} 7. Qxd8+ {[%clk 0:04:47.7]} 7... Kxd8 {[%clk 0:04:44.7]} 8. Bxc4
{[%clk 0:04:47.1]} 8... Ke7 {[%clk 0:04:43.2]} 9. O-O-O {[%clk 0:04:37.2]} 9...
a6 {[%clk 0:04:39.8]} 10. Ne4 {[%clk 0:04:35.2]} 10... Ba7 {[%clk 0:04:29.3]}
11. Nxf6 {[%clk 0:04:21.1]} 11... gxf6 {[%clk 0:04:27.1]} 12. Bf4 {[%clk
0:04:19.5]} 12... e5 {[%clk 0:04:25.7]} 13. Bg3 {[%clk 0:04:18.5]} 13... Be6
{[%clk 0:04:25.2]} 14. Bxe6 {[%clk 0:04:15.1]} 14... Kxe6 {[%clk 0:04:25.1]} 15.
e4 {[%clk 0:04:04.3]} 15... Nc6 {[%clk 0:04:23.4]} 16. Ne2 {[%clk 0:04:02.8]}
16... Rac8 {[%clk 0:04:21.1]} 17. Kb1 {[%clk 0:04:01.6]} 17... h5 {[%clk
0:04:10.1]} 18. f3 {[%clk 0:03:53.3]} 18... Nd4 {[%clk 0:04:07.7]} 19. Nxd4+
{[%clk 0:03:47.3]} 19... Bxd4 {[%clk 0:04:05.8]} 20. Rc1 {[%clk 0:03:44.4]}
20... f5 {[%clk 0:03:48.8]} 21. exf5+ {[%clk 0:03:29.3]} 21... Kxf5 {[%clk
0:03:46.9]} 22. Rxc8 {[%clk 0:03:26.4]} 22... Rxc8 {[%clk 0:03:44.9]} 23. Rc1
{[%clk 0:03:26.3]} 23... Rxc1+ {[%clk 0:03:42.4]} 24. Kxc1 {[%clk 0:03:26.2]}
24... e4 {[%clk 0:03:41.6]} 25. fxe4+ {[%clk 0:03:26.1]} 25... Kxe4 {[%clk
0:03:39.9]} 26. Kd2 {[%clk 0:03:26]} 26... Bxb2 {[%clk 0:03:38.6]} 27. a4 {[%clk
0:03:18.7]} 27... b5 {[%clk 0:03:35.7]} 28. axb5 {[%clk 0:03:17.1]} 28... axb5
{[%clk 0:03:35.6]} 29. Bd6 {[%clk 0:03:15.7]} 29... Be5 {[%clk 0:03:33.7]} 30.
Bb4 {[%clk 0:03:10.9]} 30... Bxh2 {[%clk 0:03:31.7]} 31. Ke2 {[%clk 0:03:10.5]}
31... Be5 {[%clk 0:03:29.2]} 32. Kf2 {[%clk 0:03:04.6]} 32... f6 {[%clk
0:03:27.4]} 33. Ke2 {[%clk 0:03:03.1]} 33... Kd5 {[%clk 0:03:26.5]} 34. Kf3
{[%clk 0:03:01.3]} 34... Kc4 {[%clk 0:03:25.6]} 35. Bd2 {[%clk 0:02:59.6]} 35...
b4 {[%clk 0:03:24.7]} 36. Ke4 {[%clk 0:02:53.8]} 36... b3 {[%clk 0:03:22.7]} 37.
Bc1 {[%clk 0:02:50.3]} 37... b2 {[%clk 0:03:21.1]} 38. Bxb2 {[%clk 0:02:49.4]}
38... Bxb2 {[%clk 0:03:20.9]} 39. Kf5 {[%clk 0:02:48.8]} 39... Be5 {[%clk
0:03:19.5]} 40. Kg6 {[%clk 0:02:47.8]} 40... h4 {[%clk 0:03:13.2]} 41. Kh5
{[%clk 0:02:46]} 41... Bg3 {[%clk 0:03:05.8]} 42. Kg6 {[%clk 0:02:44.9]} 42...
Kd4 {[%clk 0:03:05.3]} 43. Kxf6 {[%clk 0:02:44.3]} 43... Ke3 {[%clk 0:03:05]}
0-1